[Event "Titled Tuesday Blitz July 20 2021"]
[White "Ouellet, Maili-Jade"]
[Black "Aldokhin, Ivan"]
[WhiteFideId "2620472"]
[BlackFideId "24115720"]
[WhiteElo "1886"]
[BlackElo "2306"]
[Result "0-1"]
[Round "11"]
[TimeControl "180+1"]
[Date "2021.07.21"]
[WhiteClock "0:00:01"]
[BlackClock "0:00:29"]

1. d4 {[%clk 0:03:00]}  Nf6 {[%clk 0:02:58]} 2. c4 {[%clk 0:03:00]}  g6 {[%clk 0:02:58]} 3. Nc3 {[%clk 0:03:00]}  Bg7 {[%clk 0:02:59]} 4. e4 {[%clk 0:03:00]}  d6 {[%clk 0:03:00]} 5. f4 {[%clk 0:03:01]}  O-O {[%clk 0:02:59]} 6. Nf3 {[%clk 0:03:01]}  c5 {[%clk 0:03:00]} 7. d5 {[%clk 0:03:01]}  Bg4 {[%clk 0:02:59]} 8. Be2 {[%clk 0:03:01]}  e6 {[%clk 0:02:59]} 9. O-O {[%clk 0:03:01]}  exd5 {[%clk 0:02:59]} 10. cxd5 {[%clk 0:03:01]}  Nbd7 {[%clk 0:02:59]} 11. Re1 {[%clk 0:03:01]}  Re8 {[%clk 0:02:58]} 12. h3 {[%clk 0:03:01]}  Bxf3 {[%clk 0:02:55]} 13. Bxf3 {[%clk 0:03:02]}  c4 {[%clk 0:02:33]} 14. Be3 {[%clk 0:02:48]}  a6 {[%clk 0:02:24]} 15. a4 {[%clk 0:02:45]}  Qa5 {[%clk 0:02:23]} 16. Bd4 {[%clk 0:02:39]}  Nc5 {[%clk 0:02:15]} 17. e5 {[%clk 0:02:30]}  Nd3 {[%clk 0:02:06]} 18. Re2 {[%clk 0:01:19]}  Nd7 {[%clk 0:01:54]} 19. Bg4 {[%clk 0:01:18]}  dxe5 {[%clk 0:01:38]} 20. Bxd7 {[%clk 0:01:10]}  exd4 {[%clk 0:01:38]} 21. Rxe8+ {[%clk 0:00:51]}  Rxe8 {[%clk 0:01:37]} 22. Bxe8 {[%clk 0:00:52]}  dxc3 {[%clk 0:01:37]} 23. bxc3 {[%clk 0:00:48]}  Qxc3 {[%clk 0:01:37]} 24. Ra2 {[%clk 0:00:40]}  Qd4+ {[%clk 0:01:34]} 25. Kh2 {[%clk 0:00:37]}  Qxf4+ {[%clk 0:01:20]} 26. g3 {[%clk 0:00:37]}  Qe4 {[%clk 0:01:17]} 27. d6 {[%clk 0:00:31]}  Qxe8 {[%clk 0:01:15]} 28. Qg4 {[%clk 0:00:15]}  Ne5 {[%clk 0:01:08]} 29. Qe4 {[%clk 0:00:13]}  Qe6 {[%clk 0:01:01]} 30. Rd2 {[%clk 0:00:11]}  Nc6 {[%clk 0:00:41]} 31. Qxe6 {[%clk 0:00:09]}  fxe6 {[%clk 0:00:41]} 32. d7 {[%clk 0:00:09]}  Bf6 {[%clk 0:00:41]} 33. Re2 {[%clk 0:00:05]}  Kf7 {[%clk 0:00:40]} 34. Rf2 {[%clk 0:00:04]}  Ke7 {[%clk 0:00:37]} 35. Kg2 {[%clk 0:00:03]}  b5 {[%clk 0:00:35]} 36. axb5 {[%clk 0:00:03]}  axb5 {[%clk 0:00:36]} 37. Kf3 {[%clk 0:00:03]}  Kxd7 {[%clk 0:00:36]} 38. Ke2 {[%clk 0:00:02]}  Ke7 {[%clk 0:00:34]} 39. Kd2 {[%clk 0:00:02]}  b4 {[%clk 0:00:34]} 40. Kc2 {[%clk 0:00:02]}  b3+ {[%clk 0:00:34]} 41. Kc1 {[%clk 0:00:02]}  c3 {[%clk 0:00:35]} 42. Rf3 {[%clk 0:00:01]}  Nd4 {[%clk 0:00:32]} 43. Rf2 {[%clk 0:00:01]}  Bg5+ {[%clk 0:00:29]} 44. Kb1 {[%clk 0:00:01]}  c2+ {[%clk 0:00:29]} 0-1


[Site "https://www.chess.com"]

[Event "Titled Tuesday Blitz July 20 2021"]
[White "Pacheco Lugo, Alejandro Jose"]
[Black "Nazaretyan, Tigran"]
[WhiteFideId "3903745"]
[BlackFideId "24162345"]
[WhiteElo "2125"]
[BlackElo "2214"]
[Result "0-1"]
[Round "11"]
[TimeControl "180+1"]
[Date "2021.07.21"]
[WhiteClock "0:00:02"]
[BlackClock "0:00:25"]

1. e4 {[%clk 0:03:00]}  c5 {[%clk 0:02:59]} 2. Nf3 {[%clk 0:03:01]}  Nc6 {[%clk 0:02:59]} 3. d4 {[%clk 0:03:01]}  cxd4 {[%clk 0:02:59]} 4. Nxd4 {[%clk 0:03:02]}  Nf6 {[%clk 0:02:59]} 5. Nc3 {[%clk 0:03:02]}  d6 {[%clk 0:03:00]} 6. Bg5 {[%clk 0:03:01]}  e6 {[%clk 0:03:00]} 7. Qd2 {[%clk 0:03:01]}  a6 {[%clk 0:02:59]} 8. Nxc6 {[%clk 0:03:01]}  bxc6 {[%clk 0:02:59]} 9. O-O-O {[%clk 0:03:02]}  e5 {[%clk 0:02:56]} 10. Bc4 {[%clk 0:02:47]}  Be6 {[%clk 0:02:54]} 11. Bb3 {[%clk 0:02:45]}  a5 {[%clk 0:02:37]} 12. f4 {[%clk 0:02:44]}  exf4 {[%clk 0:02:36]} 13. Bxf4 {[%clk 0:02:42]}  Bxb3 {[%clk 0:02:25]} 14. cxb3 {[%clk 0:02:38]}  Ng4 {[%clk 0:02:05]} 15. Bxd6 {[%clk 0:02:22]}  Bxd6 {[%clk 0:02:02]} 16. Qxd6 {[%clk 0:02:22]}  Qxd6 {[%clk 0:01:48]} 17. Rxd6 {[%clk 0:02:23]}  Rc8 {[%clk 0:01:47]} 18. h3 {[%clk 0:02:10]}  Ne5 {[%clk 0:01:47]} 19. Rhd1 {[%clk 0:02:06]}  Ke7 {[%clk 0:01:46]} 20. Kb1 {[%clk 0:02:04]}  h5 {[%clk 0:01:44]} 21. R1d2 {[%clk 0:01:33]}  h4 {[%clk 0:01:43]} 22. Nd1 {[%clk 0:01:32]}  Rhd8 {[%clk 0:01:35]} 23. Rxd8 {[%clk 0:01:30]}  Rxd8 {[%clk 0:01:36]} 24. Rxd8 {[%clk 0:01:30]}  Kxd8 {[%clk 0:01:37]} 25. Ne3 {[%clk 0:01:31]}  Nd3 {[%clk 0:01:28]} 26. Kc2 {[%clk 0:01:20]}  Nb4+ {[%clk 0:01:27]} 27. Kb1 {[%clk 0:01:17]}  Nd3 {[%clk 0:01:27]} 28. a3 {[%clk 0:01:15]}  Nc5 {[%clk 0:01:26]} 29. Nf5 {[%clk 0:01:05]}  Nxb3 {[%clk 0:01:22]} 30. Kc2 {[%clk 0:01:02]}  Nc5 {[%clk 0:01:21]} 31. Nxg7 {[%clk 0:00:50]}  Nxe4 {[%clk 0:01:21]} 32. Nf5 {[%clk 0:00:50]}  Kd7 {[%clk 0:01:14]} 33. Nxh4 {[%clk 0:00:50]}  Ke6 {[%clk 0:01:15]} 34. Kd3 {[%clk 0:00:47]}  Kd5 {[%clk 0:01:12]} 35. Nf3 {[%clk 0:00:44]}  a4 {[%clk 0:01:11]} 36. h4 {[%clk 0:00:44]}  Nf2+ {[%clk 0:01:04]} 37. Ke3 {[%clk 0:00:35]}  Nd1+ {[%clk 0:01:04]} 38. Kf4 {[%clk 0:00:34]}  Nxb2 {[%clk 0:01:05]} 39. h5 {[%clk 0:00:35]}  Ke6 {[%clk 0:01:05]} 40. Kg5 {[%clk 0:00:34]}  Ke7 {[%clk 0:00:57]} 41. h6 {[%clk 0:00:18]}  Kf8 {[%clk 0:00:57]} 42. Kf6 {[%clk 0:00:18]}  Kg8 {[%clk 0:00:57]} 43. Ng5 {[%clk 0:00:19]}  Nc4 {[%clk 0:00:54]} 44. h7+ {[%clk 0:00:18]}  Kh8 {[%clk 0:00:53]} 45. Kxf7 {[%clk 0:00:18]}  Nd6+ {[%clk 0:00:35]} 46. Ke6 {[%clk 0:00:10]}  Nb5 {[%clk 0:00:33]} 47. Kf6 {[%clk 0:00:08]}  Nd6 {[%clk 0:00:32]} 48. Ke5 {[%clk 0:00:07]}  Nc4+ {[%clk 0:00:32]} 49. Ke6 {[%clk 0:00:06]}  Nxa3 {[%clk 0:00:28]} 50. Kd6 {[%clk 0:00:02]}  Nb5+ {[%clk 0:00:25]} 0-1


[Site "https://www.chess.com"]

[Event "Titled Tuesday Blitz July 20 2021"]
[White "Pakleza, Zbigniew"]
[Black "Zubov, Alexander"]
[WhiteFideId "1119290"]
[BlackFideId "14109409"]
[WhiteElo "2526"]
[BlackElo "2740"]
[Result "0-1"]
[Round "11"]
[TimeControl "180+1"]
[Date "2021.07.20"]
[WhiteClock "0:00:27"]
[BlackClock "0:01:57"]

1. d4 {[%clk 0:03:00]}  Nf6 {[%clk 0:02:59]} 2. Nf3 {[%clk 0:02:59]}  g6 {[%clk 0:02:59]} 3. Bf4 {[%clk 0:02:57]}  d6 {[%clk 0:02:58]} 4. e3 {[%clk 0:02:57]}  c5 {[%clk 0:02:58]} 5. c3 {[%clk 0:02:57]}  Qb6 {[%clk 0:02:59]} 6. Qb3 {[%clk 0:02:57]}  Be6 {[%clk 0:02:59]} 7. Qxb6 {[%clk 0:02:57]}  axb6 {[%clk 0:03:00]} 8. a3 {[%clk 0:02:57]}  Bd7 {[%clk 0:03:00]} 9. Nbd2 {[%clk 0:02:55]}  Bc6 {[%clk 0:03:01]} 10. h3 {[%clk 0:02:53]}  Bg7 {[%clk 0:03:00]} 11. Be2 {[%clk 0:02:52]}  O-O {[%clk 0:03:00]} 12. O-O {[%clk 0:02:53]}  Nbd7 {[%clk 0:03:00]} 13. Rfd1 {[%clk 0:02:52]}  b5 {[%clk 0:02:59]} 14. dxc5 {[%clk 0:02:49]}  dxc5 {[%clk 0:03:00]} 15. Ne5 {[%clk 0:02:46]}  c4 {[%clk 0:02:57]} 16. Nxc6 {[%clk 0:02:26]}  bxc6 {[%clk 0:02:56]} 17. Bf3 {[%clk 0:02:25]}  Rfc8 {[%clk 0:02:55]} 18. Ne4 {[%clk 0:02:21]}  Nd5 {[%clk 0:02:53]} 19. Bg3 {[%clk 0:02:12]}  h6 {[%clk 0:02:49]} 20. h4 {[%clk 0:01:21]}  Kf8 {[%clk 0:02:47]} 21. Rab1 {[%clk 0:01:10]}  Ke8 {[%clk 0:02:42]} 22. h5 {[%clk 0:01:06]}  g5 {[%clk 0:02:40]} 23. Bg4 {[%clk 0:01:04]}  Rd8 {[%clk 0:02:41]} 24. Kf1 {[%clk 0:01:00]}  Ra7 {[%clk 0:02:08]} 25. Ke2 {[%clk 0:00:59]}  e6 {[%clk 0:02:03]} 26. Nd6+ {[%clk 0:00:50]}  Ke7 {[%clk 0:02:02]} 27. e4 {[%clk 0:00:50]}  Nf4+ {[%clk 0:02:00]} 28. Bxf4 {[%clk 0:00:47]}  gxf4 {[%clk 0:02:01]} 29. Rd2 {[%clk 0:00:27]}  Ne5 {[%clk 0:01:58]} 30. Rbd1 {[%clk 0:00:27]}  Rad7 {[%clk 0:01:57]} 0-1


[Site "https://www.chess.com"]

[Event "Titled Tuesday Blitz July 20 2021"]
[White "Pourkashiyan, Atousa"]
[Black "Sarana, Alexey"]
[WhiteFideId "12502014"]
[BlackFideId "24133795"]
[WhiteElo "2285"]
[BlackElo "2646"]
[Result "0-1"]
[Round "11"]
[TimeControl "180+1"]
[Date "2021.07.21"]
[WhiteClock "0:00:23"]
[BlackClock "0:01:50"]

1. e4 {[%clk 0:03:00]}  e5 {[%clk 0:02:59]} 2. Nf3 {[%clk 0:03:00]}  Nc6 {[%clk 0:02:56]} 3. Bb5 {[%clk 0:02:58]}  a6 {[%clk 0:02:56]} 4. Ba4 {[%clk 0:02:56]}  Nf6 {[%clk 0:02:56]} 5. O-O {[%clk 0:02:50]}  Nxe4 {[%clk 0:02:56]} 6. d4 {[%clk 0:02:49]}  b5 {[%clk 0:02:57]} 7. Bb3 {[%clk 0:02:49]}  d5 {[%clk 0:02:57]} 8. dxe5 {[%clk 0:02:49]}  Be6 {[%clk 0:02:57]} 9. Nbd2 {[%clk 0:02:50]}  Nc5 {[%clk 0:02:56]} 10. c3 {[%clk 0:02:50]}  d4 {[%clk 0:02:56]} 11. Bc2 {[%clk 0:02:38]}  dxc3 {[%clk 0:02:38]} 12. bxc3 {[%clk 0:02:37]}  Be7 {[%clk 0:02:38]} 13. Ne4 {[%clk 0:02:32]}  Qd5 {[%clk 0:02:34]} 14. Nxc5 {[%clk 0:02:22]}  Bxc5 {[%clk 0:02:33]} 15. Bb3 {[%clk 0:02:22]}  Qxd1 {[%clk 0:02:31]} 16. Rxd1 {[%clk 0:02:23]}  Na5 {[%clk 0:02:30]} 17. Bxe6 {[%clk 0:02:18]}  fxe6 {[%clk 0:02:31]} 18. Nd4 {[%clk 0:02:19]}  Bxd4 {[%clk 0:02:30]} 19. cxd4 {[%clk 0:02:18]}  Nc4 {[%clk 0:02:27]} 20. d5 {[%clk 0:02:03]}  exd5 {[%clk 0:02:26]} 21. Rxd5 {[%clk 0:02:01]}  c6 {[%clk 0:02:26]} 22. Rd1 {[%clk 0:01:49]}  Rd8 {[%clk 0:02:24]} 23. Bg5 {[%clk 0:01:45]}  Rxd1+ {[%clk 0:02:21]} 24. Rxd1 {[%clk 0:01:46]}  Kf7 {[%clk 0:02:21]} 25. Rd7+ {[%clk 0:01:43]}  Kg6 {[%clk 0:02:20]} 26. f4 {[%clk 0:01:40]}  h6 {[%clk 0:02:11]} 27. Bh4 {[%clk 0:01:40]}  Kf5 {[%clk 0:02:12]} 28. Rxg7 {[%clk 0:01:34]}  Re8 {[%clk 0:02:11]} 29. Rf7+ {[%clk 0:01:30]}  Ke4 {[%clk 0:02:12]} 30. Rf6 {[%clk 0:01:26]}  c5 {[%clk 0:02:11]} 31. Rxh6 {[%clk 0:01:22]}  a5 {[%clk 0:02:10]} 32. Rc6 {[%clk 0:01:19]}  Kd5 {[%clk 0:02:10]} 33. Rc7 {[%clk 0:01:16]}  Nb2 {[%clk 0:02:03]} 34. Bg3 {[%clk 0:01:09]}  Nd3 {[%clk 0:01:58]} 35. h4 {[%clk 0:01:07]}  b4 {[%clk 0:01:56]} 36. h5 {[%clk 0:01:07]}  a4 {[%clk 0:01:57]} 37. h6 {[%clk 0:01:06]}  b3 {[%clk 0:01:57]} 38. axb3 {[%clk 0:01:06]}  axb3 {[%clk 0:01:58]} 39. Rb7 {[%clk 0:01:06]}  Nb4 {[%clk 0:01:58]} 40. Rd7+ {[%clk 0:00:51]}  Ke4 {[%clk 0:01:59]} 41. Rd2 {[%clk 0:00:49]}  c4 {[%clk 0:01:58]} 42. Be1 {[%clk 0:00:47]}  c3 {[%clk 0:01:56]} 43. Re2+ {[%clk 0:00:43]}  Kd3 {[%clk 0:01:57]} 44. Kf2 {[%clk 0:00:33]}  Nd5 {[%clk 0:01:50]} 45. Bxc3 {[%clk 0:00:23]}  Nxc3 {[%clk 0:01:50]} 46. Rb2 {[%clk 0:00:23]}  Nd1+ {[%clk 0:01:50]} 0-1


[Site "https://www.chess.com"]

[Event "Titled Tuesday Blitz July 20 2021"]
[White "Primbetov, Kazbek"]
[Black "Oliveira, Silvio Eduardo"]
[WhiteFideId "13702297"]
[BlackFideId "2111560"]
[WhiteElo "2184"]
[BlackElo "2302"]
[Result "0-1"]
[Round "11"]
[TimeControl "180+1"]
[Date "2021.07.21"]
[WhiteClock "0:00:03"]
[BlackClock "0:01:24"]

1. f4 {[%clk 0:03:00]}  d5 {[%clk 0:02:59]} 2. Nf3 {[%clk 0:02:59]}  g6 {[%clk 0:02:59]} 3. g3 {[%clk 0:02:49]}  Bg7 {[%clk 0:03:00]} 4. Bg2 {[%clk 0:02:50]}  c6 {[%clk 0:03:00]} 5. O-O {[%clk 0:02:50]}  Qb6+ {[%clk 0:03:01]} 6. d4 {[%clk 0:02:46]}  h5 {[%clk 0:03:01]} 7. c3 {[%clk 0:02:44]}  Nh6 {[%clk 0:03:01]} 8. Nbd2 {[%clk 0:01:51]}  Nf5 {[%clk 0:02:58]} 9. Nb3 {[%clk 0:01:49]}  h4 {[%clk 0:02:57]} 10. g4 {[%clk 0:01:44]}  h3 {[%clk 0:02:57]} 11. Bh1 {[%clk 0:01:43]}  Nh6 {[%clk 0:02:56]} 12. g5 {[%clk 0:01:35]}  Nf5 {[%clk 0:02:51]} 13. Ne5 {[%clk 0:01:03]}  Nd7 {[%clk 0:02:51]} 14. e4 {[%clk 0:01:00]}  dxe4 {[%clk 0:02:50]} 15. Nxd7 {[%clk 0:00:59]}  Bxd7 {[%clk 0:02:49]} 16. Bxe4 {[%clk 0:01:00]}  O-O-O {[%clk 0:02:34]} 17. a4 {[%clk 0:00:56]}  Be6 {[%clk 0:02:22]} 18. Nc5 {[%clk 0:00:55]}  Bd5 {[%clk 0:02:22]} 19. a5 {[%clk 0:00:55]}  Qc7 {[%clk 0:02:22]} 20. Bxd5 {[%clk 0:00:46]}  Rxd5 {[%clk 0:02:22]} 21. Ra3 {[%clk 0:00:37]}  Nxd4 {[%clk 0:02:20]} 22. Ne4 {[%clk 0:00:15]}  Nf5 {[%clk 0:02:10]} 23. Qf3 {[%clk 0:00:15]}  Qd7 {[%clk 0:02:03]} 24. Be3 {[%clk 0:00:15]}  Rd3 {[%clk 0:02:02]} 25. Re1 {[%clk 0:00:16]}  Nxe3 {[%clk 0:01:59]} 26. Rxe3 {[%clk 0:00:15]}  Rd5 {[%clk 0:01:34]} 27. Ra1 {[%clk 0:00:12]}  Rd8 {[%clk 0:01:33]} 28. Kf2 {[%clk 0:00:08]}  Rf5 {[%clk 0:01:26]} 29. Kg3 {[%clk 0:00:06]}  e5 {[%clk 0:01:25]} 30. Nc5 {[%clk 0:00:03]}  exf4+ {[%clk 0:01:24]} 0-1


[Site "https://www.chess.com"]

[Event "Titled Tuesday Blitz July 20 2021"]
[White "Prraneeth Vuppala"]
[Black "Borsuk, Konstantin"]
[WhiteFideId "46622373"]
[BlackFideId "14113406"]
[WhiteElo "1759"]
[BlackElo "2363"]
[Result "1-0"]
[Round "11"]
[TimeControl "180+1"]
[Date "2021.07.20"]
[WhiteClock "0:00:14"]
[BlackClock "0:00:05"]

1. d4 {[%clk 0:03:00]}  Nf6 {[%clk 0:02:54]} 2. c4 {[%clk 0:02:59]}  e6 {[%clk 0:02:53]} 3. Nf3 {[%clk 0:03:00]}  b6 {[%clk 0:02:53]} 4. g3 {[%clk 0:02:58]}  Bb7 {[%clk 0:02:53]} 5. Bg2 {[%clk 0:02:57]}  g6 {[%clk 0:02:54]} 6. Nc3 {[%clk 0:02:57]}  Ne4 {[%clk 0:02:52]} 7. Bd2 {[%clk 0:02:56]}  Bg7 {[%clk 0:02:52]} 8. Qc2 {[%clk 0:02:56]}  Nxd2 {[%clk 0:02:51]} 9. Qxd2 {[%clk 0:02:57]}  d6 {[%clk 0:02:50]} 10. O-O {[%clk 0:02:55]}  Nd7 {[%clk 0:02:50]} 11. e4 {[%clk 0:02:55]}  O-O {[%clk 0:02:50]} 12. d5 {[%clk 0:02:52]}  a5 {[%clk 0:02:40]} 13. Nd4 {[%clk 0:02:50]}  Nc5 {[%clk 0:02:30]} 14. f4 {[%clk 0:02:46]}  e5 {[%clk 0:02:25]} 15. fxe5 {[%clk 0:02:39]}  Bxe5 {[%clk 0:02:24]} 16. Rae1 {[%clk 0:02:31]}  Qe7 {[%clk 0:02:19]} 17. Nc6 {[%clk 0:02:28]}  Bxc6 {[%clk 0:02:18]} 18. dxc6 {[%clk 0:02:29]}  Bxc3 {[%clk 0:02:18]} 19. Qxc3 {[%clk 0:02:28]}  Rae8 {[%clk 0:02:17]} 20. e5 {[%clk 0:02:22]}  dxe5 {[%clk 0:02:16]} 21. Bd5 {[%clk 0:02:22]}  Kg7 {[%clk 0:02:14]} 22. Rf2 {[%clk 0:02:19]}  f6 {[%clk 0:02:13]} 23. g4 {[%clk 0:02:17]}  Ne6 {[%clk 0:01:55]} 24. h4 {[%clk 0:02:04]}  Qc5 {[%clk 0:01:45]} 25. Rxe5 {[%clk 0:01:52]}  Qxf2+ {[%clk 0:01:33]} 26. Kxf2 {[%clk 0:01:50]}  fxe5+ {[%clk 0:01:34]} 27. Kg3 {[%clk 0:01:48]}  Nd4 {[%clk 0:01:34]} 28. Qe3 {[%clk 0:01:45]}  Rf4 {[%clk 0:01:24]} 29. h5 {[%clk 0:01:36]}  gxh5 {[%clk 0:01:22]} 30. c5 {[%clk 0:01:24]}  hxg4 {[%clk 0:01:14]} 31. Qa3 {[%clk 0:01:14]}  Ne2+ {[%clk 0:00:57]} 32. Kg2 {[%clk 0:01:04]}  Ref8 {[%clk 0:00:50]} 33. cxb6 {[%clk 0:01:03]}  Rf2+ {[%clk 0:00:48]} 34. Kh1 {[%clk 0:01:01]}  Rf1+ {[%clk 0:00:48]} 35. Kh2 {[%clk 0:01:01]}  R8f2+ {[%clk 0:00:24]} 36. Bg2 {[%clk 0:01:01]}  Nf4 {[%clk 0:00:16]} 37. Qe7+ {[%clk 0:01:00]}  Kg6 {[%clk 0:00:16]} 38. Qe8+ {[%clk 0:00:57]}  Kg5 {[%clk 0:00:10]} 39. Qxe5+ {[%clk 0:00:56]}  Kh4 {[%clk 0:00:09]} 40. Qf6+ {[%clk 0:00:54]}  Kh5 {[%clk 0:00:09]} 41. Qf7+ {[%clk 0:00:45]}  Kh6 {[%clk 0:00:10]} 42. Qf8+ {[%clk 0:00:41]}  Kh5 {[%clk 0:00:09]} 43. Qe8+ {[%clk 0:00:33]}  Kh6 {[%clk 0:00:09]} 44. Qf8+ {[%clk 0:00:27]}  Kh5 {[%clk 0:00:08]} 45. Qf5+ {[%clk 0:00:26]}  Kh6 {[%clk 0:00:06]} 46. Qxg4 {[%clk 0:00:19]}  Rxg2+ {[%clk 0:00:04]} 47. Qxg2 {[%clk 0:00:19]}  Nxg2 {[%clk 0:00:04]} 48. b7 {[%clk 0:00:16]}  Rf8 {[%clk 0:00:04]} 49. Kxg2 {[%clk 0:00:14]}  Kg6 {[%clk 0:00:05]} 50. a4 {[%clk 0:00:14]}  Kf6 {[%clk 0:00:05]} 51. b4 {[%clk 0:00:14]}  axb4 {[%clk 0:00:02]} 52. a5 {[%clk 0:00:15]}  b3 {[%clk 0:00:03]} 53. a6 {[%clk 0:00:15]}  b2 {[%clk 0:00:03]} 54. a7 {[%clk 0:00:15]}  b1=Q {[%clk 0:00:03]} 55. a8=Q {[%clk 0:00:16]}  Qe4+ {[%clk 0:00:04]} 56. Kh2 {[%clk 0:00:15]}  Qd4 {[%clk 0:00:05]} 57. Qxf8+ {[%clk 0:00:14]} 1-0


[Site "https://www.chess.com"]

[Event "Titled Tuesday Blitz July 20 2021"]
[White "Przybylski, Wojciech"]
[Black "Damjanovic, Vladimir"]
[WhiteFideId "1117599"]
[BlackFideId "903795"]
[WhiteElo "2317"]
[BlackElo "2374"]
[Result "0-1"]
[Round "11"]
[TimeControl "180+1"]
[Date "2021.07.21"]
[WhiteClock "0:00:08"]
[BlackClock "0:00:09"]

1. e4 {[%clk 0:03:00]}  c5 {[%clk 0:02:59]} 2. Nf3 {[%clk 0:02:58]}  d6 {[%clk 0:03:00]} 3. d4 {[%clk 0:02:58]}  cxd4 {[%clk 0:03:01]} 4. Nxd4 {[%clk 0:02:59]}  Nf6 {[%clk 0:02:59]} 5. Nc3 {[%clk 0:03:00]}  Nc6 {[%clk 0:03:00]} 6. Bg5 {[%clk 0:02:58]}  e6 {[%clk 0:03:00]} 7. f4 {[%clk 0:02:57]}  h6 {[%clk 0:02:58]} 8. Bh4 {[%clk 0:02:57]}  Be7 {[%clk 0:02:58]} 9. Nxc6 {[%clk 0:02:55]}  bxc6 {[%clk 0:02:58]} 10. e5 {[%clk 0:02:55]}  Nd5 {[%clk 0:02:56]} 11. Bxe7 {[%clk 0:02:54]}  Qxe7 {[%clk 0:02:57]} 12. Nxd5 {[%clk 0:02:37]}  exd5 {[%clk 0:02:45]} 13. Qe2 {[%clk 0:02:36]}  O-O {[%clk 0:02:36]} 14. O-O-O {[%clk 0:02:35]}  Rb8 {[%clk 0:02:22]} 15. exd6 {[%clk 0:02:33]}  Qxd6 {[%clk 0:02:23]} 16. Qd2 {[%clk 0:02:30]}  Bf5 {[%clk 0:01:52]} 17. Be2 {[%clk 0:02:22]}  Rb4 {[%clk 0:01:46]} 18. g4 {[%clk 0:02:20]}  Be4 {[%clk 0:01:42]} 19. Rhf1 {[%clk 0:02:19]}  Rfb8 {[%clk 0:01:35]} 20. b3 {[%clk 0:02:19]}  Ra4 {[%clk 0:01:27]} 21. Qc3 {[%clk 0:01:52]}  Rxa2 {[%clk 0:01:24]} 22. Bd3 {[%clk 0:01:50]}  Qa3+ {[%clk 0:01:20]} 23. Kb1 {[%clk 0:01:34]}  Bxd3 {[%clk 0:00:36]} 24. Rxd3 {[%clk 0:01:31]}  a5 {[%clk 0:00:35]} 25. Re1 {[%clk 0:00:56]}  a4 {[%clk 0:00:33]} 26. Rde3 {[%clk 0:00:44]}  axb3 {[%clk 0:00:18]} 27. Re8+ {[%clk 0:00:35]}  Rxe8 {[%clk 0:00:18]} 28. Rxe8+ {[%clk 0:00:35]}  Kh7 {[%clk 0:00:19]} 29. cxb3 {[%clk 0:00:33]}  Rxh2 {[%clk 0:00:07]} 30. Re1 {[%clk 0:00:25]}  Qa2+ {[%clk 0:00:03]} 31. Kc1 {[%clk 0:00:25]}  Qf2 {[%clk 0:00:02]} 32. f5 {[%clk 0:00:14]}  Qf4+ {[%clk 0:00:02]} 33. Kb1 {[%clk 0:00:15]}  Qxg4 {[%clk 0:00:02]} 34. Rf1 {[%clk 0:00:14]}  Qg5 {[%clk 0:00:02]} 35. f6 {[%clk 0:00:13]}  Qg6+ {[%clk 0:00:02]} 36. Ka1 {[%clk 0:00:13]}  gxf6 {[%clk 0:00:02]} 37. b4 {[%clk 0:00:04]}  Qc2 {[%clk 0:00:02]} 38. Qxc2+ {[%clk 0:00:03]}  Rxc2 {[%clk 0:00:03]} 39. Rxf6 {[%clk 0:00:03]}  Kg7 {[%clk 0:00:03]} 40. Rd6 {[%clk 0:00:03]}  Rc4 {[%clk 0:00:04]} 41. Ka2 {[%clk 0:00:03]}  h5 {[%clk 0:00:04]} 42. Rxc6 {[%clk 0:00:04]}  Rxc6 {[%clk 0:00:04]} 43. Kb3 {[%clk 0:00:04]}  Rb6 {[%clk 0:00:05]} 44. b5 {[%clk 0:00:05]}  Rb8 {[%clk 0:00:06]} 45. Kb4 {[%clk 0:00:05]}  h4 {[%clk 0:00:07]} 46. Kc5 {[%clk 0:00:06]}  h3 {[%clk 0:00:07]} 47. Kc6 {[%clk 0:00:07]}  h2 {[%clk 0:00:08]} 48. Kc7 {[%clk 0:00:08]}  Rxb5 {[%clk 0:00:08]} 49. Kd6 {[%clk 0:00:08]}  Rb1 {[%clk 0:00:09]} 50. Ke7 {[%clk 0:00:08]}  Re1+ {[%clk 0:00:09]} 0-1


[Site "https://www.chess.com"]

[Event "Titled Tuesday Blitz July 20 2021"]
[White "Rottenwohrer Suarez, Juan"]
[Black "LuckSlayeer"]
[WhiteFideId "32068182"]
[WhiteElo "2158"]
[BlackElo "2539"]
[Result "1-0"]
[Round "11"]
[TimeControl "180+1"]
[Date "2021.07.21"]
[WhiteClock "0:01:03"]
[BlackClock "0:00:01"]

1. d4 {[%clk 0:03:00]}  Nf6 {[%clk 0:02:59]} 2. c4 {[%clk 0:03:01]}  e6 {[%clk 0:03:00]} 3. Nc3 {[%clk 0:03:01]}  Bb4 {[%clk 0:03:00]} 4. Qc2 {[%clk 0:03:02]}  O-O {[%clk 0:02:59]} 5. Nf3 {[%clk 0:03:02]}  c5 {[%clk 0:02:59]} 6. dxc5 {[%clk 0:03:03]}  Na6 {[%clk 0:02:59]} 7. g3 {[%clk 0:03:03]}  Bxc5 {[%clk 0:02:55]} 8. Bg2 {[%clk 0:03:03]}  Nb4 {[%clk 0:02:55]} 9. Qb3 {[%clk 0:02:55]}  d5 {[%clk 0:02:54]} 10. O-O {[%clk 0:02:51]}  Nc6 {[%clk 0:02:31]} 11. cxd5 {[%clk 0:02:45]}  exd5 {[%clk 0:02:32]} 12. Rd1 {[%clk 0:02:45]}  Be6 {[%clk 0:02:05]} 13. Qxb7 {[%clk 0:02:43]}  Na5 {[%clk 0:01:19]} 14. Qb5 {[%clk 0:02:41]}  Rc8 {[%clk 0:01:09]} 15. Bg5 {[%clk 0:02:38]}  Nc4 {[%clk 0:00:54]} 16. e4 {[%clk 0:02:33]}  d4 {[%clk 0:00:34]} 17. e5 {[%clk 0:02:27]}  Qb6 {[%clk 0:00:20]} 18. Qxb6 {[%clk 0:02:25]}  Bxb6 {[%clk 0:00:21]} 19. exf6 {[%clk 0:02:23]}  Nxb2 {[%clk 0:00:20]} 20. Ne4 {[%clk 0:02:12]}  Nxd1 {[%clk 0:00:20]} 21. Rxd1 {[%clk 0:02:13]}  Bxa2 {[%clk 0:00:21]} 22. fxg7 {[%clk 0:02:07]}  Kxg7 {[%clk 0:00:20]} 23. Nxd4 {[%clk 0:02:07]}  f5 {[%clk 0:00:10]} 24. Nd6 {[%clk 0:01:52]}  Rc5 {[%clk 0:00:07]} 25. Be7 {[%clk 0:01:47]}  Rb8 {[%clk 0:00:04]} 26. N6xf5+ {[%clk 0:01:46]}  Kf7 {[%clk 0:00:03]} 27. Bxc5 {[%clk 0:01:44]}  Bxc5 {[%clk 0:00:04]} 28. Nc6 {[%clk 0:01:30]}  Rb2 {[%clk 0:00:04]} 29. Ne3 {[%clk 0:01:22]}  a6 {[%clk 0:00:01]} 30. Ra1 {[%clk 0:01:17]}  Bb3 {[%clk 0:00:01]} 31. Bf1 {[%clk 0:01:03]} 1-0


[Site "https://www.chess.com"]